bitfinex/quotes_BTCUSD_20250218
["timestamp","ask_amount","ask_price","bid_price","bid_amount"]
[1739903485266,0.160325,94147.0,94146.0,0.10950365]
[1739903485473,0.160325,94147.0,94146.0,0.007]
[1739903485676,0.159327,94146.0,94145.0,0.0001702]
[1739903487333,0.17597091,94146.0,94145.0,0.0001702]
[1739903488092,0.00493643,94146.0,94145.0,0.0001702]
[1739903488300,0.159327,94146.0,94145.0,0.0001702]
[1739903488654,0.1769712,94146.0,94145.0,0.0051702]
[1739903489049,0.1769712,94146.0,94145.0,0.0001702]
[1739903489243,0.1779712,94146.0,94145.0,0.0051702]
[1739903489457,0.1769712,94146.0,94145.0,0.0001702]
[1739903489912,0.1779712,94146.0,94145.0,0.0051702]
[1739903490033,0.1783116,94146.0,94145.0,0.0051702]
[1739903491067,0.1763116,94146.0,94145.0,0.0001702]
[1739903491475,0.1773116,94146.0,94145.0,0.0051702]
[1739903491686,0.1773116,94146.0,94145.0,0.0001702]
[1739903492103,0.1783116,94146.0,94145.0,0.0051702]
[1739903492313,0.1763116,94146.0,94145.0,0.0001702]
[1739903492510,0.19770377,94146.0,94145.0,0.0001702]
[1739903492711,0.19870377,94146.0,94145.0,0.0051702]
[1739903492916,0.19870377,94146.0,94125.0,0.1001702]
[1739903492917,0.309354,94130.0,94129.0,0.06076685]
[1739903493123,0.309354,94130.0,94129.0,0.06089918]
[1739903493323,0.309354,94130.0,94129.0,0.05185895]
[1739903494440,0.310354,94130.0,94129.0,0.05285895]
[1739903494853,0.309354,94130.0,94129.0,0.05125895]
[1739903495302,0.310354,94130.0,94129.0,0.05225895]
[1739903495501,0.309354,94130.0,94129.0,0.05125895]
[1739903495892,0.310354,94130.0,94129.0,0.05225895]
[1739903496237,0.3270014,94130.0,94129.0,0.05225895]
[1739903496443,0.32103305,94130.0,94129.0,0.05225895]
[1739903496613,0.32910782,94130.0,94129.0,0.05225895]
[1739903497437,0.4247578,94130.0,94129.0,0.05125895]
[1739903497656,0.29436,94126.0,94125.0,0.0991702]
[1739903497783,0.29436,94126.0,94125.0,0.09961098]
[1739903498710,0.39786365,94126.0,94125.0,0.09961098]
[1739903499144,0.39686365,94126.0,94125.0,0.09961098]
[1739903500483,0.41351289,94126.0,94125.0,0.09961098]
[1739903500833,0.41351289,94126.0,94125.0,0.0745454]
[1739903501237,0.41451289,94126.0,94125.0,0.0745454]
[1739903501632,0.309367,94122.0,94121.0,6.02648509]
[1739903502307,0.309367,94122.0,94121.0,5.99548914]
[1739903502852,0.309367,94122.0,94121.0,5.94397014]
[1739903503061,0.388267,94122.0,94121.0,4.58442475]
[1739903503284,0.389267,94122.0,94121.0,4.54865624]
[1739903503642,0.389267,94122.0,94121.0,4.53373376]
[1739903503838,0.49177065,94122.0,94121.0,4.53373376]
[1739903505290,0.49077065,94122.0,94121.0,4.53273376]
[1739903505490,0.49177065,94122.0,94121.0,4.53373376]
[1739903505732,0.49177065,94122.0,94121.0,4.53273376]
[1739903505953,0.4887757,94122.0,94121.0,2.81440376]
[1739903506180,0.4897757,94122.0,94121.0,2.81540376]
[1739903506540,0.4877757,94122.0,94121.0,0.78654495]
[1739903506741,0.18240365,94122.0,94112.0,5.96844423]
[1739903507110,0.159382,94113.0,94112.0,5.96844423]
[1739903508568,0.309382,94113.0,94112.0,5.96944423]
[1739903508771,0.309382,94113.0,94112.0,5.96844423]
[1739903509195,0.310382,94113.0,94112.0,5.96944423]
[1739903510017,0.810382,94113.0,94112.0,5.96944423]
[1739903510496,0.651,94113.0,94112.0,5.96944423]
[1739903511332,0.501,94113.0,94112.0,5.96944423]
[1739903513010,0.5,94113.0,94112.0,5.96861453]
[1739903513205,0.501,94113.0,94112.0,5.96861453]
[1739903513406,0.5013406,94113.0,94112.0,5.96861453]
[1739903514204,0.6607226,94113.0,94112.0,5.96861453]
[1739903514484,0.5013406,94113.0,94112.0,6.15221818]
[1739903514652,0.5013406,94113.0,94112.0,6.04971453]
[1739903514885,0.5003406,94113.0,94112.0,6.04971453]
[1739903515061,0.5,94286.0,94112.0,6.05571453]
[1739903515265,0.15172998,94122.0,94121.0,0.02]
[1739903515460,0.15936,94126.0,94125.0,0.02]
[1739903515688,0.22059424,94130.0,94125.0,0.02]
[1739903515839,0.15936,94126.0,94125.0,0.02]
[1739903516630,0.16036,94126.0,94125.0,0.10439351]
[1739903516895,0.1710832,94126.0,94125.0,0.10439351]
[1739903518027,0.1617232,94126.0,94125.0,0.10439351]
[1739903519111,0.1617232,94126.0,94125.0,0.12439351]
[1739903519321,0.0117232,94126.0,94125.0,0.49829351]
[1739903521123,0.0107232,94126.0,94125.0,0.49129351]
[1739903521407,0.15,94132.0,94131.0,0.02]
[1739903521994,0.16061621,94132.0,94131.0,0.02]
[1739903522193,0.16996621,94132.0,94131.0,0.02]
[1739903522580,0.16061621,94132.0,94131.0,0.02]
[1739903522817,0.16061621,94132.0,94131.0,0.027]
[1739903523066,0.31996621,94132.0,94131.0,0.02]
[1739903523964,0.309354,94130.0,94129.0,0.02]
[1739903524090,0.309354,94130.0,94126.0,0.02]
[1739903524091,0.309359,94127.0,94126.0,0.02]
[1739903524293,0.309359,94127.0,94126.0,0.04]
[1739903524501,0.01161621,94132.0,94131.0,0.244852]
[1739903524744,0.01161621,94132.0,94131.0,0.0855]
[1739903524948,0.01261621,94132.0,94131.0,0.27350365]
[1739903525121,0.001,94132.0,94131.0,1.28554103]
[1739903525339,0.001,94132.0,94131.0,1.27854103]
[1739903525719,0.00783439,94154.0,94131.0,1.15454103]
[1739903525942,0.309313,94154.0,94153.0,0.1447]
[1739903526124,0.309313,94154.0,94153.0,0.1647]
[1739903526125,0.32015863,94154.0,94153.0,0.1647]
[1739903527554,0.01084563,94154.0,94153.0,0.1647]
[1739903527911,0.159313,94154.0,94153.0,0.1647]
[1739903528234,0.1698075,94154.0,94153.0,0.1647]
[1739903528590,0.0104945,94154.0,94153.0,0.1647]
[1739903528793,0.001,94154.0,94153.0,0.1717]
[1739903529021,0.01144114,94154.0,94153.0,0.1717]
[1739903529226,0.310313,94154.0,94153.0,0.1717]
[1739903530545,0.32124935,94154.0,94153.0,0.1717]
[1739903533113,0.32124935,94154.0,94153.0,0.0855]
[1739903533330,0.32124935,94154.0,94153.0,0.007]
[1739903534010,0.15,94153.0,94142.0,0.02]
[1739903534216,0.309332,94143.0,94142.0,0.02]
[1739903535669,0.310332,94143.0,94142.0,0.027]
[1739903535891,0.151,94143.0,94142.0,0.027]
[1739903536274,0.310332,94143.0,94142.0,0.027]
[1739903537494,0.309332,94143.0,94142.0,0.02]
[1739903537713,0.309332,94143.0,94119.0,0.159372]
[1739903537714,0.309347,94134.0,94133.0,0.01053008]
[1739903537911,0.04814248,94143.0,94135.0,0.01053008]
[1739903537912,0.309343,94136.0,94135.0,0.01053008]
[1739903538339,0.30935,94132.0,94131.0,0.0001701]
[1739903538540,0.30935,94132.0,94115.0,0.0966701]
[1739903538541,0.309377,94116.0,94115.0,0.0966701]
[1739903538740,0.30950952,94116.0,94115.0,0.0966701]
[1739903539378,0.15013252,94116.0,94115.0,0.0966701]
[1739903539678,0.30950952,94116.0,94115.0,0.0966701]
[1739903540021,0.15013252,94116.0,94115.0,0.0966701]
[1739903540875,0.15013252,94116.0,94115.0,0.24847375]
[1739903541270,0.00013252,94116.0,94115.0,0.40785275]
[1739903541510,0.15172998,94140.0,94139.0,0.0001701]
[1739903541833,9.863e-05,94140.0,94139.0,0.0201701]
[1739903542995,0.00109863,94140.0,94139.0,0.0271701]
[1739903543194,0.00109863,94140.0,94139.0,0.1075701]
[1739903544292,9.863e-05,94140.0,94139.0,0.1005701]
[1739903544469,0.00109863,94140.0,94139.0,0.1075701]
[1739903544712,0.00109863,94140.0,94139.0,0.1004]
[1739903544912,0.15109863,94140.0,94139.0,0.1005701]
[1739903545119,0.15209863,94140.0,94139.0,0.1075701]
[1739903545315,0.31143563,94140.0,94139.0,0.1075701]
[1739903545552,0.15209863,94140.0,94139.0,0.1075701]
[1739903545981,0.00209863,94140.0,94139.0,0.1075701]
[1739903546205,0.15209863,94140.0,94139.0,0.1075701]
[1739903547547,0.00209863,94140.0,94139.0,0.1075701]
[1739903547748,0.16143563,94140.0,94139.0,0.1075701]
[1739903548441,0.35448271,94140.0,94139.0,0.0071701]
[1739903548658,0.31143563,94140.0,94139.0,0.0271701]
[1739903549294,0.15009863,94140.0,94139.0,0.0201701]
[1739903549448,0.30943563,94140.0,94139.0,0.0201701]
[1739903550590,0.31043563,94140.0,94139.0,0.0271701]
[1739903550973,0.30943563,94140.0,94139.0,0.0201701]
[1739903551173,0.30943563,94140.0,94139.0,0.0271701]
[1739903551379,0.31043563,94140.0,94139.0,0.0271701]
[1739903552686,0.31077603,94140.0,94139.0,0.0271701]
[1739903554163,0.0013404,94140.0,94139.0,0.0271701]
[1739903554545,0.1606774,94140.0,94139.0,0.0071701]
[1739903554755,0.1606774,94140.0,94139.0,0.0271701]
[1739903554957,0.159347,94134.0,94133.0,1e-07]
[1739903555134,0.159355,94129.0,94128.0,0.02]
[1739903555860,0.212472,94130.0,94128.0,0.02]
[1739903556079,0.159355,94129.0,94128.0,0.02]
[1739903556776,0.309355,94129.0,94128.0,0.02]
[1739903557737,0.310355,94129.0,94128.0,0.02]
[1739903557955,0.309355,94129.0,94128.0,0.02]
[1739903558318,0.151,94129.0,94128.0,0.02]
[1739903558540,0.309355,94129.0,94128.0,0.02]
[1739903558715,0.310355,94129.0,94128.0,0.02]
[1739903558915,0.160355,94129.0,94128.0,0.02]
[1739903560195,0.159355,94129.0,94128.0,0.02]
[1739903560527,0.160355,94129.0,94128.0,0.02]
[1739903560857,0.212476,94128.0,94127.0,0.02]
[1739903561062,0.212476,94128.0,94122.0,0.02]
[1739903561268,0.159376,94117.0,94116.0,0.02]
[1739903562194,0.159382,94113.0,94111.0,0.13045]
[1739903562744,0.309382,94113.0,94111.0,0.00065]
[1739903562945,0.309382,94113.0,94112.0,5.98861453]
[1739903563784,0.309382,94113.0,94112.0,5.89895775]
[1739903563991,0.309382,94113.0,94112.0,5.91895775]
[1739903564219,0.310382,94113.0,94112.0,5.91895775]
[1739903564421,0.309382,94113.0,94112.0,5.91895775]
[1739903564781,0.310382,94113.0,94112.0,5.91895775]
[1739903564984,0.309382,94113.0,94112.0,5.91895775]
[1739903565401,0.310382,94113.0,94112.0,5.91895775]
[1739903565882,0.001,94113.0,94112.0,5.91895775]
[1739903566085,0.160382,94113.0,94112.0,5.91895775]
[1739903566678,0.159382,94113.0,94112.0,5.91895775]
[1739903566932,0.160382,94113.0,94112.0,5.91895775]
[1739903567163,0.159382,94113.0,94112.0,5.91895775]
[1739903567576,0.160382,94113.0,94112.0,5.91895775]
[1739903567782,0.159382,94113.0,94112.0,5.91895775]
[1739903567978,0.212507,94115.0,94114.0,0.02]
[1739903568194,0.00779413,94117.0,94114.0,0.019]
[1739903568598,0.309379,94115.0,94114.0,0.019]
[1739903568801,0.15,94115.0,94114.0,0.1483]
[1739903568978,0.16717013,94117.0,94114.0,0.1483]
[1739903569210,0.309377,94116.0,94115.0,0.019]
[1739903569817,0.15,94116.0,94115.0,0.019]
[1739903570354,0.00779413,94117.0,94116.0,0.019]
[1739903570555,0.15,94119.0,94116.0,0.019]
[1739903570851,0.31108398,94130.0,94129.0,0.019]
[1739903571047,0.309354,94130.0,94129.0,0.019]
[1739903572102,0.159354,94130.0,94129.0,0.019]
[1739903572302,0.159354,94130.0,94129.0,0.018]
[1739903572744,0.243904,94160.0,94139.0,0.018]
[1739903572950,0.16777288,94140.0,94139.0,0.018]
[1739903573176,0.16777288,94140.0,94139.0,0.0994]
[1739903573516,0.31777288,94140.0,94139.0,0.0994]
[1739903574125,0.31777288,94140.0,94139.0,0.0984]
[1739903575118,0.1503404,94140.0,94139.0,0.0984]
[1739903575320,0.11745343,94140.0,94139.0,0.1054]
[1739903575526,0.0325,94191.0,94153.0,0.018]
[1739903575743,0.02180957,94177.0,94176.0,0.018]
[1739903576001,0.02180957,94177.0,94176.0,0.0639]
[1739903576309,0.212344,94187.0,94181.0,0.018]
[1739903576514,0.371601,94187.0,94186.0,0.018]
[1739903576664,0.38500571,94187.0,94186.0,0.018]
[1739903576874,0.01340471,94187.0,94186.0,0.018]
[1739903577070,9.868e-05,94193.0,94186.0,0.0937]
[1739903577270,9.868e-05,94193.0,94192.0,0.017]
[1739903578099,0.01353806,94193.0,94192.0,0.017]
[1739903578316,9.868e-05,94193.0,94192.0,0.017]
[1739903578866,9.868e-05,94193.0,94192.0,0.00872]
[1739903579689,0.01369545,94193.0,94192.0,0.01572]
[1739903580152,0.01369545,94193.0,94192.0,0.00872]
[1739903580355,0.01369545,94193.0,94192.0,0.01572]
[1739903580516,0.17294245,94193.0,94192.0,0.01572]
[1739903580926,0.32426949,94193.0,94192.0,0.007]
[1739903581117,0.32294245,94193.0,94192.0,0.01572]
[1739903582836,0.16369545,94193.0,94180.0,0.083]
[1739903583040,0.309267,94181.0,94180.0,0.09172]
[1739903583458,0.159276,94176.0,94175.0,0.00872]
[1739903583688,0.15,94171.0,94164.0,0.0493]
[1739903583886,0.309291,94167.0,94164.0,0.0493]
[1739903584090,0.30931,94156.0,94155.0,0.00795341]
[1739903585907,0.309316,94152.0,94150.0,0.0493]
[1739903586984,0.15,94151.0,94145.0,0.0792]
[1739903587161,0.309327,94146.0,94145.0,0.0792]
[1739903587358,0.309335,94141.0,94140.0,0.08476686]
[1739903587799,0.309335,94141.0,94137.0,0.046]
[1739903587800,0.15,94140.0,94137.0,0.046]
[1739903587976,0.15,94140.0,94128.0,0.0803]
[1739903587977,0.15,94137.0,94128.0,0.0803]
[1739903588175,0.159355,94129.0,94128.0,0.08039863]
[1739903588389,0.15172998,94138.0,94128.0,0.08039863]
[1739903588890,0.15,94137.0,94133.0,0.08476686]
[1739903589316,0.15,94137.0,94133.0,0.18727051]
[1739903589515,0.01314994,94141.0,94134.0,0.10250365]
[1739903589746,0.01414994,94141.0,94140.0,0.007]
[1739903589944,0.001,94141.0,94140.0,0.10950365]
[1739903590172,0.15,94149.0,94145.0,0.0001701]
[1739903590724,0.15,94147.0,94145.0,0.0001701]
[1739903591132,0.15,94147.0,94140.0,0.10250365]
[1739903591133,0.0008299,94141.0,94140.0,0.10950365]
[1739903591313,0.0008299,94141.0,94140.0,0.23130365]
[1739903592147,0.0008299,94141.0,94140.0,0.25430365]
[1739903592840,0.01320194,94155.0,94142.0,0.0808]
[1739903593217,0.0081074,94183.0,94156.0,0.0808]
[1739903593421,0.0211916,94190.0,94165.0,0.08476686]
[1739903593422,0.01338061,94172.0,94165.0,0.08476686]
[1739903593625,0.15,94178.0,94175.0,0.08476686]
[1739903593826,0.15172998,94180.0,94175.0,0.08476686]
[1739903594034,0.159271,94179.0,94175.0,0.08476686]
[1739903594241,0.01303393,94180.0,94177.0,0.048]
[1739903594434,0.15172998,94200.0,94186.0,0.08476686]
[1739903594638,0.1503402,94193.0,94186.0,0.08476686]
[1739903594916,0.15047288,94193.0,94186.0,0.08476686]
[1739903595352,0.00047288,94193.0,94186.0,0.08476686]
[1739903595706,0.01392255,94193.0,94186.0,0.08476686]
[1739903595906,0.01392255,94193.0,94187.0,0.01978083]
[1739903596850,0.15,94191.0,94187.0,0.01978083]
[1739903597084,0.15,94191.0,94188.0,0.01978083]
[1739903598132,0.2125856,94231.0,94192.0,0.159249]
[1739903598389,0.1595456,94219.0,94207.0,0.08476686]
[1739903598597,0.01384093,94208.0,94207.0,0.18727051]
[1739903598770,0.0003406,94208.0,94207.0,0.18727051]
[1739903599720,0.0003406,94208.0,94207.0,0.19427051]
[1739903599938,0.0003406,94208.0,94207.0,0.10454769]
[1739903600149,0.3095626,94208.0,94207.0,0.35138083]
[1739903600937,0.1503406,94208.0,94207.0,0.35138083]
[1739903601137,0.3095626,94208.0,94207.0,0.35138083]
[1739903601780,0.3095626,94208.0,94207.0,0.34438083]
[1739903601982,0.3095626,94208.0,94207.0,0.01978083]
[1739903602193,0.3095626,94208.0,94207.0,0.02678083]
[1739903602396,0.3095626,94208.0,94207.0,0.01978083]
[1739903602592,0.3095626,94208.0,94207.0,0.02678083]
[1739903602948,0.3095626,94208.0,94207.0,0.01978083]
[1739903603155,0.159247,94193.0,94192.0,0.0001701]
[1739903603404,0.309247,94193.0,94192.0,0.0001701]
[1739903605178,0.309247,94193.0,94192.0,0.0071701]
[1739903606371,0.309257,94187.0,94186.0,0.21577011]
[1739903606578,0.309286,94170.0,94169.0,0.15649012]
[1739903607699,0.309288,94169.0,94168.0,0.00013268]
[1739903609068,0.362379,94171.0,94168.0,0.00013268]
[1739903609255,0.159288,94169.0,94168.0,0.00013268]
[1739903609462,0.160288,94169.0,94168.0,0.00613268]
[1739903609679,0.159288,94169.0,94168.0,0.00013268]
[1739903610105,0.25474218,94169.0,94168.0,0.00013268]
[1739903610319,0.159288,94169.0,94168.0,0.00013268]
[1739903610535,0.16061552,94169.0,94168.0,0.00013268]
[1739903610966,0.16161552,94169.0,94168.0,0.00613268]
[1739903611172,0.160288,94169.0,94168.0,0.00613268]
[1739903611377,0.160288,94169.0,94168.0,0.00013268]
[1739903611378,0.159288,94169.0,94168.0,0.00013268]
[1739903611598,0.40716971,94169.0,94168.0,0.00613268]
[1739903611804,0.310288,94169.0,94168.0,0.00613268]
[1739903612691,0.151,94169.0,94168.0,0.00613268]
[1739903612901,0.151,94169.0,94168.0,0.08183268]
[1739903612902,0.001,94169.0,94168.0,0.08183268]
[1739903614089,0.212325,94195.0,94168.0,0.38382645]
[1739903614290,0.0080906,94196.0,94184.0,0.08476686]
[1739903614493,0.159261,94185.0,94184.0,0.08476686]
[1739903614697,0.0080906,94196.0,94184.0,0.08476686]
[1739903614911,0.0080906,94196.0,94184.0,0.08376686]
[1739903615317,0.159249,94192.0,94185.0,0.0784]
[1739903615524,0.22782799,94200.0,94185.0,0.23489012]
[1739903615734,0.0003406,94208.0,94196.0,0.08476686]
[1739903615945,0.159239,94198.0,94197.0,0.20369012]
[1739903616570,0.212303,94205.0,94197.0,0.20369012]
[1739903616773,0.159239,94198.0,94197.0,0.20369012]
[1739903617180,0.159239,94198.0,94197.0,0.15649012]
[1739903618171,0.159239,94198.0,94197.0,0.16349012]
[1739903618318,0.159239,94198.0,94197.0,0.15649012]
[1739903618739,0.159239,94198.0,94197.0,0.16349012]
[1739903618960,0.159239,94198.0,94197.0,0.15649012]
[1739903619178,0.159239,94198.0,94197.0,0.16349012]
[1739903621843,0.159239,94198.0,94197.0,0.007]
[1739903622060,0.159254,94189.0,94188.0,0.15649012]
[1739903622695,0.309254,94189.0,94188.0,0.15649012]
[1739903624140,0.15,94189.0,94188.0,0.15649012]
[1739903624366,0.15,94189.0,94188.0,0.16349012]
[1739903624568,0.309254,94189.0,94188.0,0.15649012]
[1739903624984,0.309254,94189.0,94188.0,0.16349012]
[1739903625202,0.309254,94189.0,94188.0,0.15649012]
[1739903625605,0.309254,94189.0,94188.0,0.16349012]
[1739903627136,0.309254,94189.0,94188.0,0.11349012]
[1739903627389,0.212336,94191.0,94188.0,0.11349012]
[1739903627589,0.159254,94189.0,94188.0,0.11349012]
[1739903628447,0.159254,94189.0,94188.0,0.10649012]
[1739903628678,0.159254,94189.0,94188.0,0.11349012]
[1739903628891,0.159254,94189.0,94188.0,0.10649012]
[1739903629092,0.159254,94189.0,94188.0,0.11349012]
[1739903629295,0.1595946,94189.0,94188.0,0.10413343]
[1739903631387,0.1595946,94189.0,94188.0,0.09713343]
[1739903631720,0.1595946,94189.0,94188.0,0.10413343]
[1739903631929,0.1595946,94189.0,94188.0,0.09713343]
[1739903632436,0.1595946,94189.0,94188.0,0.10413343]
[1739903632641,0.1595946,94189.0,94188.0,0.09713343]
[1739903632900,0.1595946,94189.0,94188.0,0.10413343]
[1739903633428,0.1595946,94189.0,94188.0,0.11113343]
[1739903633875,0.1595946,94189.0,94188.0,0.014]
[1739903634796,0.159261,94185.0,94184.0,0.08376686]
[1739903636392,0.159261,94185.0,94178.0,0.09713343]
[1739903636393,0.159271,94179.0,94178.0,0.09713343]
[1739903636613,0.15,94180.0,94171.0,0.14263343]
[1739903636872,0.159283,94172.0,94171.0,0.09713343]
[1739903638085,0.15,94172.0,94171.0,0.09713343]
[1739903638291,0.00013253,94179.0,94171.0,0.09713343]
[1739903638496,0.15940353,94179.0,94178.0,0.08476686]
[1739903639273,0.00013253,94179.0,94178.0,0.08476686]
[1739903639447,0.15940353,94179.0,94178.0,0.16086686]
[1739903639625,0.15940353,94179.0,94178.0,0.25800029]
[1739903639828,0.15940353,94179.0,94178.0,0.26500029]
[1739903640646,0.15940353,94179.0,94178.0,0.18023343]
[1739903640828,0.15940353,94179.0,94178.0,0.10413343]
[1739903641234,0.15940353,94179.0,94178.0,0.09730363]
[1739903641581,0.15940353,94179.0,94178.0,0.10430363]
[1739903641709,0.30940353,94179.0,94178.0,0.09730363]
[1739903642217,0.30940353,94179.0,94178.0,0.10430363]
[1739903642419,0.30940353,94179.0,94178.0,0.09730363]
[1739903642839,0.30940353,94179.0,94178.0,0.10430363]
[1739903643052,0.15940353,94179.0,94178.0,0.10430363]
[1739903644076,0.15940353,94179.0,94178.0,0.10380363]
[1739903644407,0.15940353,94179.0,94178.0,0.09680363]
[1739903644619,0.15940353,94179.0,94178.0,0.10380363]
[1739903644788,0.15940353,94179.0,94178.0,0.09680363]
[1739903645191,0.15940353,94179.0,94178.0,0.10380363]
[1739903645386,0.15940353,94179.0,94178.0,0.09680363]
[1739903645694,0.15940353,94179.0,94178.0,0.0071702]
[1739903646101,0.15940353,94179.0,94178.0,0.0001702]
[1739903646759,0.16073087,94179.0,94178.0,0.0001702]
[1739903646974,0.15940353,94179.0,94178.0,0.0001702]
[1739903647367,0.16040353,94179.0,94178.0,0.0071702]
[1739903647771,0.16040353,94179.0,94178.0,0.0001702]
[1739903647986,0.16140353,94179.0,94178.0,0.0071702]
[1739903648491,0.16040353,94179.0,94178.0,0.0001702]
[1739903648694,0.16140353,94179.0,94178.0,0.0071702]
[1739903651959,0.16140353,94179.0,94178.0,0.00345133]
[1739903652139,0.31140353,94179.0,94178.0,0.00345133]
[1739903652336,0.159288,94169.0,94162.0,0.0773]
[1739903654765,0.160288,94169.0,94168.0,0.0061703]
[1739903655070,0.159288,94169.0,94168.0,0.0001703]
[1739903655276,0.2389296,94169.0,94168.0,0.0001703]
[1739903655479,0.160288,94169.0,94168.0,0.0061703]
[1739903655689,0.160288,94169.0,94168.0,0.0001703]
[1739903655878,0.16161547,94169.0,94168.0,0.0001703]
[1739903656070,0.16261547,94169.0,94168.0,0.0051703]
[1739903656693,0.159305,94159.0,94158.0,0.09663343]
[1739903657289,0.17569069,94159.0,94158.0,0.09663343]
[1739903657538,0.159316,94152.0,94151.0,0.0455]
[1739903658819,0.160316,94152.0,94151.0,0.0485]
[1739903661271,0.001,94152.0,94151.0,0.15100365]
[1739903661408,0.160316,94152.0,94151.0,0.15100365]
[1739903661612,0.159316,94152.0,94151.0,0.14800365]
[1739903661948,0.160316,94152.0,94151.0,0.14800365]
[1739903662252,0.001,94152.0,94151.0,0.14800365]
[1739903663523,0.159314,94154.0,94151.0,0.24463708]
[1739903663726,0.159314,94154.0,94152.0,0.10150365]
[1739903664335,0.159315,94153.0,94152.0,0.10150365]
[1739903664535,0.15,94154.0,94152.0,0.10150365]
[1739903664990,0.151,94154.0,94152.0,0.10150365]
[1739903665162,0.15,94154.0,94152.0,0.10150365]
[1739903665355,0.159315,94153.0,94152.0,0.10150365]
[1739903665894,0.15,94154.0,94152.0,0.10150365]
[1739903666073,0.309313,94154.0,94152.0,0.10150365]
[1739903666293,0.15,94156.0,94152.0,0.10150365]
[1739903666437,0.01695399,94159.0,94155.0,0.08376686]
[1739903666639,0.0746,94207.0,94158.0,0.1244]
[1739903666838,0.159265,94183.0,94177.0,0.1275]
[1739903667052,0.212342,94188.0,94177.0,0.1265]
[1739903667276,0.15196171,94190.0,94177.0,0.1265]
[1739903667277,0.15,94180.0,94177.0,0.1265]
[1739903667487,0.159272,94178.0,94177.0,0.1265]
[1739903667702,0.15974393,94179.0,94177.0,0.1255]
[1739903667883,0.00047293,94179.0,94177.0,0.1255]
[1739903668124,0.159272,94178.0,94177.0,0.1255]
[1739903668324,0.01803721,94179.0,94177.0,0.32463708]
[1739903668500,0.00147293,94179.0,94177.0,0.32463708]
[1739903668862,0.16074393,94179.0,94177.0,0.32463708]
[1739903669050,0.159272,94178.0,94177.0,0.32463708]
[1739903669260,0.00147293,94179.0,94177.0,0.32463708]
[1739903669471,0.00047293,94179.0,94178.0,0.10250365]
[1739903669702,0.01717719,94179.0,94178.0,0.10250365]
[1739903669927,0.00147293,94179.0,94178.0,0.17910365]
[1739903670326,0.01819719,94179.0,94178.0,0.17910365]
[1739903670538,0.01919719,94179.0,94178.0,0.17910365]
[1739903670742,0.15974393,94179.0,94178.0,0.17910365]
[1739903671144,0.16074393,94179.0,94178.0,0.0816]
[1739903671348,0.16074393,94179.0,94178.0,0.0766]
[1739903671765,0.17759817,94179.0,94178.0,0.0766]
[1739903672066,0.01832717,94179.0,94178.0,0.0766]
[1739903672475,0.17759817,94179.0,94178.0,0.27573708]
[1739903672808,0.01832717,94179.0,94178.0,0.28273708]
[1739903674397,0.01732717,94179.0,94178.0,0.28273708]
[1739903674811,0.17659817,94179.0,94178.0,0.27573708]
[1739903674954,0.01732717,94179.0,94178.0,0.27573708]
[1739903675987,0.17659817,94179.0,94178.0,0.27573708]
[1739903676185,0.17659817,94179.0,94178.0,0.28273708]
[1739903676395,0.17659817,94179.0,94178.0,0.27573708]
[1739903676775,0.17659817,94179.0,94178.0,0.28273708]
[1739903676976,0.17659817,94179.0,94178.0,0.17323343]
[1739903677440,0.01732717,94179.0,94178.0,0.28273708]
[1739903677623,0.01732717,94179.0,94178.0,0.27573708]
[1739903678126,0.17659817,94179.0,94178.0,0.28273708]
[1739903678532,0.32659817,94179.0,94178.0,0.10363343]
[1739903678739,0.40172899,94179.0,94178.0,0.10363343]
[1739903678955,0.15,94178.0,94159.0,0.0788]
[1739903679153,0.15,94160.0,94158.0,0.09663343]
[1739903679355,0.309305,94159.0,94158.0,0.09663343]
[1739903680661,0.309305,94159.0,94158.0,0.10363343]
[1739903681687,0.15,94159.0,94158.0,0.10363343]
[1739903682082,0.15,94159.0,94158.0,0.20613708]
[1739903682870,0.309305,94159.0,94158.0,0.19913708]
[1739903683091,0.310305,94159.0,94158.0,0.20613708]
[1739903683808,0.310305,94159.0,94158.0,0.10363343]
[1739903684216,0.4050549,94159.0,94158.0,0.10363343]
[1739903684377,0.4040549,94159.0,94158.0,0.09663343]
[1739903684840,0.4050549,94159.0,94158.0,0.10363343]
[1739903685812,0.4040549,94159.0,94158.0,0.09663343]
[1739903686219,0.4050549,94159.0,94158.0,0.10363343]
[1739903686421,0.4050549,94159.0,94158.0,0.09663343]
[1739903686422,0.309305,94159.0,94158.0,0.09663343]
[1739903686855,0.309305,94159.0,94158.0,0.004]
[1739903687505,0.130086,94159.0,94158.0,0.004]
[1739903689053,0.159316,94152.0,94142.0,0.09663343]
[1739903690400,0.309316,94152.0,94151.0,0.0021703]
[1739903690607,0.309316,94152.0,94151.0,0.0001703]
[1739903691011,0.309316,94152.0,94151.0,0.0031703]
[1739903691212,0.01493776,94152.0,94151.0,0.0031703]
[1739903691527,0.159316,94152.0,94151.0,0.0031703]
[1739903692113,0.159316,94152.0,94151.0,0.0001703]
[1739903692506,0.159316,94152.0,94151.0,0.0011703]
[1739903692968,0.159316,94152.0,94151.0,0.0001703]
[1739903693132,0.159316,94152.0,94151.0,0.0011703]
[1739903693333,0.159316,94152.0,94151.0,0.0001703]
[1739903693733,0.159316,94152.0,94151.0,0.0011703]
[1739903693972,0.159316,94152.0,94151.0,0.0001703]
[1739903695909,0.159316,94152.0,94151.0,0.0021703]
[1739903696107,0.159327,94146.0,94142.0,0.09663343]
[1739903696314,0.159322,94149.0,94147.0,0.0457]
[1739903696487,0.159323,94148.0,94147.0,0.0457]
[1739903697559,0.160323,94148.0,94147.0,0.0477]
[1739903699598,0.160323,94148.0,94147.0,0.0457]
[1739903699820,0.159323,94148.0,94147.0,0.0457]
[1739903700369,0.160323,94148.0,94147.0,0.0457]
[1739903701155,0.212425,94151.0,94143.0,0.08476686]
[1739903701355,0.159327,94146.0,94143.0,0.08476686]
[1739903702138,0.159327,94146.0,94145.0,0.09680373]
[1739903704157,0.160327,94146.0,94145.0,0.09880373]
[1739903706092,0.159327,94146.0,94145.0,0.09680373]
[1739903706615,0.160327,94146.0,94145.0,0.09880373]
[1739903706770,0.159327,94146.0,94145.0,0.09680373]
[1739903706973,0.309327,94146.0,94145.0,0.09880373]
[1739903707176,0.32167553,94146.0,94145.0,0.0021703]
[1739903707362,0.309327,94146.0,94145.0,0.0021703]